fUSD/lending_fUSD_20241123
["ID","MTS","AMOUNT","RATE_DAILY","PERIOD"]
[343145024,1732380638860,-9901.26186712,0.00051289,120]
[343145027,1732380638875,-662.88668843,0.00051289,120]
[343145028,1732380638884,-150.0,0.00051289,2]
[343145029,1732380638893,-150.0,0.00051289,2]
[343145030,1732380638902,-179.08,0.00051289,2]
[343145031,1732380638911,-210.0,0.000513,2]
[343145032,1732380638922,-63.49208191,0.000513,120]
[343145033,1732380638934,-3673.50791809,0.000513,120]
[343145034,1732380638943,-200.0,0.00051388,2]
[343145035,1732380638953,-166.39,0.000514,2]
[343145036,1732380638962,-284.12,0.00051435,120]
[343145037,1732380638971,-287.44873889,0.00051613,28]
[343145038,1732380638980,-209.29661421,0.00051618,15]
[343145039,1732380638990,-1698.6535049,0.00051618,15]
[343145040,1732380638999,-1000.0,0.00051667,120]
[343145041,1732380639009,-150.3,0.00051674,2]
[343145042,1732380639018,-1172.94,0.00051732,2]
[343145043,1732380639027,-204.58869476,0.00051748,23]
[343145044,1732380639036,-500.0,0.00052086,2]
[343145045,1732380639045,-435.85,0.00052133,2]
[343145046,1732380639054,-204.58869476,0.00052208,24]
[343145047,1732380639063,-287.44873889,0.00052326,28]
[343145048,1732380639072,-257.45,0.00052446,120]
[343145049,1732380639081,-209.29661421,0.00052472,15]
[343145050,1732380639090,-1698.6535049,0.00052472,15]
[343145051,1732380639099,-761.86,0.00052489,2]
[343145052,1732380639108,-204.58869476,0.00052669,24]
[343145053,1732380639117,-1501.0,0.000529,2]
[343145054,1732380639127,-1000.0,0.00052913,2]
[343145055,1732380639136,-800.0,0.00053,2]
[343145056,1732380639145,-5900.0,0.00053,14]
[343145057,1732380639154,-287.44873889,0.00053039,28]
[343145058,1732380639163,-204.58869476,0.00053129,25]
[343145059,1732380639176,-209.29661421,0.00053327,15]
[343145060,1732380639185,-1698.6535049,0.00053327,15]
[343145061,1732380639195,-204.58869476,0.00053589,25]
[343145062,1732380639205,-287.44873889,0.00053751,28]
[343145063,1732380639217,-1172.94,0.00053995,2]
[343145064,1732380639227,-204.58869476,0.00054049,26]
[343145065,1732380639236,-312.2964625,0.00054081,2]
[343145066,1732380639245,-209.29661421,0.00054181,15]
[343145067,1732380639257,-1698.6535049,0.00054181,15]
[343145068,1732380639266,-210.0,0.000543,2]
[343145069,1732380639276,-546.503,0.000544,120]
[343145070,1732380639285,-287.44873889,0.00054464,28]
[343145071,1732380639295,-204.58869476,0.00054509,26]
[343145072,1732380639304,-150.3,0.00054589,2]
[343145073,1732380639314,-433.75,0.00054631,30]
[343145074,1732380639323,-389.24,0.00054631,30]
[343145075,1732380639332,-1000.0,0.00054675,2]
[343145076,1732380639342,-1712.60836711,0.000547,2]
[343145077,1732380639351,-313.29007051,0.00054773,10]
[343145078,1732380639360,-151.24,0.00054784,120]
[343145079,1732380639370,-195.11714022,0.00054794,120]
[343145080,1732380639379,-500.0,0.00054794,120]
[343145081,1732380639388,-500.0,0.00054794,120]
[343145082,1732380639398,-500.0,0.00054794,120]
[343145083,1732380639407,-500.0,0.00054794,120]
[343145084,1732380639416,-560.26,0.00054794,120]
[343145085,1732380639429,-386.40764621,0.00054794,120]
[343145086,1732380639439,-500.0,0.00054794,120]
[343145087,1732380639449,-500.0,0.00054794,120]
[343145088,1732380639459,-500.0,0.00054794,120]
[343145089,1732380639469,-510.91462617,0.00054794,120]
[343145090,1732380639479,-500.0,0.00054794,120]
[343145091,1732380639490,-500.0,0.00054794,120]
[343145092,1732380639502,-500.0,0.00054794,120]
[343145093,1732380639513,-500.0,0.00054794,120]
[343145094,1732380639524,-500.0,0.00054794,120]
[343145095,1732380639535,-385.13,0.00054794,120]
[343145096,1732380639545,-500.0,0.00054794,120]
[343145097,1732380639558,-500.41242718,0.00054794,120]
[343145098,1732380639569,-500.0,0.00054794,120]
[343145099,1732380639579,-500.0,0.00054794,120]
[343145100,1732380639590,-500.0,0.00054794,120]
[343145101,1732380639774,-500.0,0.00054794,120]
[343145102,1732380639784,-500.0,0.00054794,120]
[343145103,1732380639794,-577.33807875,0.00054794,120]
[343145104,1732380639804,-186.75394511,0.00054794,120]
[343145105,1732380639814,-1334.72,0.00054794,120]
[343145106,1732380639823,-1334.72,0.00054794,120]
[343145107,1732380639832,-1334.72,0.00054794,120]
[343145108,1732380639842,-1334.72,0.00054794,120]
[343145109,1732380639851,-1334.72,0.00054794,120]
[343145110,1732380639860,-1334.72,0.00054794,120]
[343145111,1732380639870,-268.03,0.00054794,120]
[343145112,1732380639879,-500.0,0.00054794,120]
[343145114,1732380639889,-493.52631365,0.00054794,120]
[343145116,1732380639899,-500.0,0.00054794,120]
[343145118,1732380639907,-500.0,0.00054794,120]
[343145120,1732380639917,-500.0,0.00054794,120]
[343145121,1732380639932,-179.68557735,0.00054794,120]
[343145122,1732380639941,-582.72,0.00054794,120]
[343145123,1732380639951,-500.0,0.00054794,120]
[343145124,1732380639961,-500.0,0.00054794,120]
[343145125,1732380639971,-500.0,0.00054794,120]
[343145126,1732380639980,-500.0,0.00054794,120]
[343145127,1732380639989,-486.64,0.00054794,120]
[343145128,1732380639998,-500.0,0.00054794,120]
[343145129,1732380640008,-500.0,0.00054794,120]
[343145130,1732380640017,-289.06,0.00054794,120]
[343145131,1732380640027,-500.0,0.00054794,120]
[343145132,1732380640036,-500.0,0.00054794,120]
[343145133,1732380640046,-482.59891543,0.00054794,120]
[343145134,1732380640057,-500.0,0.00054794,120]
[343145135,1732380640066,-500.0,0.00054794,120]
[343145136,1732380640076,-500.0,0.00054794,120]
[343145137,1732380640086,-500.0,0.00054794,120]
[343145138,1732380640096,-234.92761067,0.00054794,120]
[343145139,1732380640106,-500.0,0.00054794,120]
[343145140,1732380640115,-404.23131056,0.00054794,120]
[343145141,1732380640125,-500.0,0.00054794,120]
[343145142,1732380640134,-500.0,0.00054794,120]
[343145143,1732380640144,-500.0,0.00054794,120]
[343145144,1732380640153,-500.0,0.00054794,120]
[343145145,1732380640163,-500.0,0.00054794,120]
[343145146,1732380640176,-500.0,0.00054794,120]
[343145147,1732380640186,-548.56,0.00054794,120]
[343145148,1732380640200,-164.73036882,0.00054794,120]
[343145149,1732380640210,-500.0,0.00054794,120]
[343145150,1732380640219,-500.0,0.00054794,120]
[343145151,1732380640228,-500.0,0.00054794,120]
[343145152,1732380640239,-500.0,0.00054794,120]
[343145153,1732380640248,-500.0,0.00054794,120]
[343145154,1732380640258,-500.0,0.00054794,120]
[343145155,1732380640269,-500.0,0.00054794,120]
[343145156,1732380640278,-500.0,0.00054794,120]
[343145157,1732380640287,-500.0,0.00054794,120]
[343145158,1732380640297,-218.15,0.00054794,120]
[343145159,1732380640306,-532.873089,0.00054794,120]
[343145160,1732380640316,-500.0,0.00054794,120]
[343145161,1732380640326,-500.0,0.00054794,120]
[343145162,1732380640336,-525.1235089,0.00054794,120]
[343145163,1732380640345,-523.33866662,0.00054794,120]
[343145164,1732380640356,-500.0,0.00054794,120]
[343145165,1732380640367,-500.0,0.00054794,120]
[343145166,1732380640377,-171.07238933,0.00054794,120]
[343145167,1732380640388,-202.22,0.00054794,120]
[343145168,1732380640398,-500.0,0.00054794,120]
[343145169,1732380640408,-500.0,0.00054794,120]
[343145170,1732380640420,-500.0,0.00054794,120]
[343145171,1732380640454,-500.0,0.00054794,120]
[343145173,1732380640464,-500.0,0.00054794,120]
[343145174,1732380640475,-500.0,0.00054794,120]
[343145175,1732380640485,-500.0,0.00054794,120]
[343145177,1732380640496,-500.0,0.00054794,120]
[343145178,1732380640506,-500.0,0.00054794,120]
[343145180,1732380640516,-500.0,0.00054794,120]
[343145181,1732380640526,-500.0,0.00054794,120]
[343145182,1732380640535,-500.0,0.00054794,120]
[343145183,1732380640544,-500.0,0.00054794,120]
[343145184,1732380640554,-500.0,0.00054794,120]
[343145185,1732380640564,-500.0,0.00054794,120]
[343145186,1732380640574,-500.0,0.00054794,120]
[343145187,1732380640584,-500.0,0.00054794,120]
[343145188,1732380640593,-268.89362503,0.00054794,120]
[343145189,1732380640606,-452.66,0.00054794,120]
[343145190,1732380640616,-500.0,0.00054794,120]
[343145191,1732380640625,-500.0,0.00054794,120]
[343145192,1732380640634,-478.42532699,0.00054794,120]
[343145193,1732380640645,-612.44,0.00054794,120]
[343145194,1732380640655,-584.94,0.00054794,120]
[343145195,1732380640666,-500.0,0.00054794,120]
[343145196,1732380640683,-500.0,0.00054794,120]
[343145197,1732380640694,-420.35905604,0.00054794,120]
[343145198,1732380640703,-500.0,0.00054794,120]
[343145199,1732380640713,-472.16094396,0.00054794,120]
[343145200,1732380640723,-500.0,0.00054794,120]
[343145201,1732380640733,-350.58,0.00054794,120]
[343145202,1732380640743,-156.89558435,0.00054794,120]
[343145203,1732380640754,-500.0,0.00054794,120]
[343145204,1732380640764,-500.0,0.00054794,120]
[343145205,1732380640774,-500.0,0.00054794,120]
[343145206,1732380640784,-500.0,0.00054794,120]
[343145207,1732380640794,-346.7,0.00054794,120]
[343145208,1732380640803,-500.0,0.00054794,120]
[343145209,1732380640813,-500.0,0.00054794,120]
[343145210,1732380640823,-500.0,0.00054794,120]
[343145211,1732380640833,-500.0,0.00054794,120]
[343145212,1732380640842,-500.0,0.00054794,120]
[343145213,1732380640852,-529.97,0.00054794,120]
[343145214,1732380640862,-300.0,0.00054794,120]
[343145215,1732380640872,-500.0,0.00054794,120]
[343145216,1732380640881,-187.01,0.00054794,120]
[343145217,1732380640891,-500.0,0.00054794,54]
[343145218,1732380640900,-500.0,0.00054794,54]
[343145219,1732380640910,-397.04374192,0.00054794,120]
[343145220,1732380640923,-500.0,0.00054794,120]
[343145221,1732380640933,-511.55,0.00054794,120]
[343145222,1732380640943,-562.36,0.00054794,120]
[343145223,1732380640952,-562.36,0.00054794,120]
[343145224,1732380640962,-500.0,0.00054794,120]
[343145225,1732380640971,-500.0,0.00054794,120]
[343145226,1732380640981,-500.0,0.00054794,120]
[343145227,1732380640991,-500.0,0.00054794,120]
[343145228,1732380641001,-402.0472546,0.00054794,120]
[343145229,1732380641011,-500.0,0.00054794,120]
[343145230,1732380641021,-223.40041046,0.00054794,120]
[343145231,1732380641030,-500.0,0.00054794,120]
[343145232,1732380641040,-500.0,0.00054794,2]
[343145233,1732380641050,-500.0,0.00054794,120]
[343145234,1732380641060,-500.0,0.00054794,120]
[343145235,1732380641070,-500.0,0.00054794,120]
[343145236,1732380641080,-594.69,0.00054794,120]
[343145237,1732380641091,-500.0,0.00054794,120]
[343145238,1732380641100,-500.0,0.00054794,120]
[343145239,1732380641109,-500.0,0.00054794,120]
[343145240,1732380641119,-500.0,0.00054794,120]
[343145241,1732380641128,-500.0,0.00054794,120]
[343145242,1732380641139,-509.39,0.00054794,120]
[343145243,1732380641148,-500.0,0.00054794,120]
[343145244,1732380641158,-500.0,0.00054794,120]
[343145245,1732380641168,-500.0,0.00054794,120]
[343145246,1732380641178,-500.0,0.00054794,120]
[343145247,1732380641188,-500.0,0.00054794,120]
[343145248,1732380641198,-500.0,0.00054794,120]
[343145249,1732380641209,-500.0,0.00054794,120]
[343145250,1732380641219,-500.0,0.00054794,120]
[343145251,1732380641229,-500.0,0.00054794,120]
[343145252,1732380641239,-500.0,0.00054794,120]
[343145253,1732380641250,-500.0,0.00054794,120]
[343145254,1732380641259,-500.0,0.00054794,120]
[343145255,1732380641269,-500.0,0.00054794,120]
[343145256,1732380641281,-500.0,0.00054794,120]
[343145257,1732380641292,-500.0,0.00054794,120]
[343145258,1732380641302,-500.0,0.00054794,120]
[343145259,1732380641312,-500.0,0.00054794,120]
[343145260,1732380641322,-500.0,0.00054794,120]
[343145261,1732380641332,-500.0,0.00054794,120]
[343145262,1732380641342,-500.0,0.00054794,120]
[343145263,1732380641352,-500.0,0.00054794,120]
[343145264,1732380641362,-500.0,0.00054794,120]
[343145265,1732380641372,-500.0,0.00054794,120]
[343145266,1732380641382,-500.0,0.00054794,120]
[343145267,1732380641392,-500.0,0.00054794,120]
[343145268,1732380641402,-410.04134155,0.00054794,120]
[343145269,1732380641412,-500.0,0.00054794,120]
[343145270,1732380641424,-500.0,0.00054794,120]
[343145271,1732380641434,-500.0,0.00054794,120]
[343145272,1732380641444,-465.61868931,0.00054794,120]
[343145273,1732380641454,-500.0,0.00054794,120]
[343145274,1732380641464,-500.0,0.00054794,120]
[343145275,1732380641473,-500.0,0.00054794,120]
[343145276,1732380641483,-500.0,0.00054794,120]
[343145277,1732380641494,-500.0,0.00054794,120]
[343145278,1732380641504,-500.0,0.00054794,120]
[343145279,1732380641514,-500.0,0.00054794,120]
[343145280,1732380641525,-520.83,0.00054794,120]
[343145281,1732380641535,-500.0,0.00054794,120]
[343145282,1732380641545,-618.57,0.00054794,120]
[343145283,1732380641556,-500.0,0.00054794,120]
[343145284,1732380641567,-500.0,0.00054794,120]
[343145285,1732380641577,-618.57,0.00054794,120]
[343145286,1732380641587,-500.0,0.00054794,120]
[343145287,1732380641597,-500.0,0.00054794,120]
[343145288,1732380641607,-500.0,0.00054794,120]
[343145289,1732380641617,-587.05441362,0.00054794,120]
[343145290,1732380641627,-500.0,0.00054794,120]
[343145291,1732380641637,-500.0,0.00054794,120]
[343145292,1732380641647,-500.0,0.00054794,120]
[343145293,1732380641656,-500.0,0.00054794,120]
[343145294,1732380641666,-500.0,0.00054794,120]
[343145295,1732380641679,-500.0,0.00054794,120]
[343145296,1732380641689,-500.0,0.00054794,120]
[343145297,1732380641704,-500.0,0.00054794,120]
[343145298,1732380641724,-500.0,0.00054794,120]
[343145299,1732380641734,-461.6113897,0.00054794,120]
[343145300,1732380641744,-500.0,0.00054794,120]
[343145301,1732380641754,-500.0,0.00054794,120]
[343145302,1732380641763,-500.0,0.00054794,120]
[343145303,1732380641772,-500.0,0.00054794,120]
[343145304,1732380641782,-500.0,0.00054794,120]
[343145305,1732380641791,-500.0,0.00054794,120]
[343145306,1732380641801,-273.26,0.00054794,120]
[343145307,1732380641811,-500.0,0.00054794,120]
[343145308,1732380641821,-500.0,0.00054794,120]
[343145309,1732380641831,-500.0,0.00054794,120]
[343145310,1732380641841,-500.0,0.00054794,120]
[343145311,1732380641852,-500.0,0.00054794,120]
[343145312,1732380641861,-500.0,0.00054794,120]
[343145313,1732380641871,-500.0,0.00054794,120]
[343145314,1732380641880,-500.0,0.00054794,120]
[343145315,1732380641890,-500.0,0.00054794,120]
[343145316,1732380641900,-629.50637497,0.00054794,120]
[343145317,1732380641913,-500.0,0.00054794,120]
[343145318,1732380641925,-500.0,0.00054794,120]
[343145319,1732380641935,-500.0,0.00054794,120]
[343145320,1732380641944,-500.0,0.00054794,120]
[343145321,1732380641954,-500.0,0.00054794,120]
[343145322,1732380641963,-500.0,0.00054794,120]
[343145323,1732380641974,-500.0,0.00054794,120]
[343145324,1732380641983,-500.0,0.00054794,120]
[343145325,1732380641995,-500.0,0.00054794,120]
[343145326,1732380642004,-498.2495048,0.00054794,120]
[343145327,1732380642014,-500.0,0.00054794,120]
[343145328,1732380642026,-500.0,0.00054794,120]
[343145329,1732380642038,-500.0,0.00054794,120]
[343145330,1732380642048,-500.0,0.00054794,120]
[343145331,1732380642057,-500.0,0.00054794,120]
[343145332,1732380642066,-500.0,0.00054794,120]
[343145333,1732380642076,-500.0,0.00054794,120]
[343145334,1732380642086,-500.0,0.00054794,120]
[343145335,1732380642095,-500.0,0.00054794,120]
[343145336,1732380642104,-500.0,0.00054794,120]
[343145337,1732380642113,-500.0,0.00054794,120]
[343145338,1732380642123,-500.0,0.00054794,120]
[343145339,1732380642132,-500.0,0.00054794,120]
[343145340,1732380642141,-500.0,0.00054794,120]
[343145341,1732380642151,-500.0,0.00054794,120]
[343145342,1732380642162,-500.0,0.00054794,120]
[343145343,1732380642174,-154.99474329,0.00054794,120]
[343145344,1732380642183,-500.0,0.00054794,120]
[343145345,1732380642196,-500.0,0.00054794,120]
[343145346,1732380642205,-500.0,0.00054794,120]
[343145347,1732380642215,-500.0,0.00054794,120]
[343145348,1732380642224,-500.0,0.00054794,120]
[343145349,1732380642234,-500.0,0.00054794,30]
[343145350,1732380642245,-500.0,0.00054794,120]
[343145351,1732380642255,-500.0,0.00054794,30]
[343145352,1732380642265,-500.0,0.00054794,120]
[343145353,1732380642275,-500.0,0.00054794,120]
[343145354,1732380642285,-500.0,0.00054794,120]
[343145355,1732380642294,-500.0,0.00054794,120]
[343145356,1732380642303,-500.0,0.00054794,120]
[343145357,1732380642313,-156.57,0.00054794,120]
[343145358,1732380642322,-500.0,0.00054794,120]
[343145359,1732380642331,-500.0,0.00054794,120]
[343145360,1732380642341,-500.0,0.00054794,120]
[343145361,1732380642350,-500.0,0.00054794,120]
[343145362,1732380642360,-500.0,0.00054794,120]
[343145363,1732380642370,-500.0,0.00054794,120]
[343145364,1732380642379,-500.0,0.00054794,120]
[343145365,1732380642390,-564.14,0.00054794,120]
[343145366,1732380642400,-500.0,0.00054794,120]
[343145367,1732380642409,-500.0,0.00054794,120]
[343145368,1732380642422,-500.0,0.00054794,120]
[343145369,1732380642432,-500.0,0.00054794,120]
[343145370,1732380642442,-554.92,0.00054794,120]
[343145371,1732380642453,-500.0,0.00054794,120]
[343145372,1732380642463,-1450.67,0.00054794,120]
[343145373,1732380642473,-500.0,0.00054794,120]
[343145374,1732380642483,-1450.67,0.00054794,120]
[343145375,1732380642493,-500.0,0.00054794,120]
[343145376,1732380642503,-500.0,0.00054794,120]
[343145377,1732380642514,-354.67391262,0.00054794,120]
[343145378,1732380642523,-500.0,0.00054794,120]
[343145379,1732380642533,-500.0,0.00054794,120]
[343145380,1732380642543,-500.0,0.00054794,120]
[343145381,1732380642552,-500.0,0.00054794,120]
[343145382,1732380642562,-500.0,0.00054794,120]
[343145383,1732380642571,-500.0,0.00054794,120]
[343145384,1732380642583,-500.0,0.00054794,120]
[343145385,1732380642594,-500.0,0.00054794,120]
[343145386,1732380642604,-500.0,0.00054794,120]
[343145387,1732380642613,-534.32219806,0.00054794,120]
[343145388,1732380642622,-500.0,0.00054794,120]
[343145389,1732380642631,-500.0,0.00054794,120]
[343145390,1732380642640,-414.22033284,0.00054794,120]
[343145391,1732380642650,-500.0,0.00054794,120]
[343145392,1732380642659,-285.7683584,0.00054794,120]
[343145393,1732380642668,-500.0,0.00054794,120]
[343145394,1732380642681,-500.0,0.00054794,120]
[343145395,1732380642690,-500.0,0.00054794,120]
[343145396,1732380642699,-500.0,0.00054794,120]
[343145397,1732380642708,-500.0,0.00054794,120]
[343145398,1732380642717,-500.0,0.00054794,120]
[343145399,1732380642726,-500.0,0.00054794,120]
[343145400,1732380642736,-500.0,0.00054794,120]
[343145401,1732380642745,-500.0,0.00054794,120]
[343145402,1732380642754,-500.0,0.00054794,120]
[343145403,1732380642763,-500.0,0.00054794,120]
[343145404,1732380642772,-500.0,0.00054794,120]
[343145405,1732380642781,-500.0,0.00054794,120]
[343145406,1732380642791,-500.0,0.00054794,120]
[343145407,1732380642800,-500.0,0.00054794,120]
[343145408,1732380642811,-500.0,0.00054794,120]
[343145409,1732380642821,-500.0,0.00054794,120]
[343145410,1732380642830,-500.0,0.00054794,120]
[343145411,1732380642839,-500.0,0.00054794,120]
[343145412,1732380642848,-500.0,0.00054794,120]
[343145413,1732380642858,-500.0,0.00054794,120]
[343145414,1732380642867,-500.0,0.00054794,120]
[343145415,1732380642876,-500.0,0.00054794,120]
[343145416,1732380642886,-614.45,0.00054794,120]
[343145417,1732380642897,-500.0,0.00054794,120]
[343145418,1732380642907,-500.0,0.00054794,120]
[343145419,1732380642916,-500.0,0.00054794,120]
[343145420,1732380642930,-500.0,0.00054794,120]
[343145421,1732380642939,-500.0,0.00054794,120]
[343145423,1732380642948,-500.0,0.00054794,120]
[343145425,1732380642958,-500.0,0.00054794,120]
[343145426,1732380642967,-500.0,0.00054794,120]
[343145427,1732380642977,-500.0,0.00054794,120]
[343145428,1732380642986,-500.0,0.00054794,120]
[343145429,1732380642996,-500.0,0.00054794,120]
[343145430,1732380643005,-500.0,0.00054794,120]
[343145431,1732380643015,-500.0,0.00054794,120]
[343145432,1732380643024,-500.0,0.00054794,120]
[343145433,1732380643034,-543.9027606,0.00054794,2]
[343145434,1732380643043,-500.0,0.00054794,120]
[343145435,1732380643052,-500.0,0.00054794,120]
[343145436,1732380643061,-519.07501138,0.00054794,120]
[343145437,1732380643071,-551.89,0.00054794,120]
[343145438,1732380643080,-500.0,0.00054794,120]
[343145439,1732380643090,-579.1,0.00054794,120]
[343145440,1732380643100,-312.45043147,0.00054794,120]
[343145441,1732380643110,-500.0,0.00054794,120]
[343145442,1732380643119,-500.0,0.00054794,120]
[343145443,1732380643129,-500.0,0.00054794,120]
[343145445,1732380643138,-500.0,0.00054794,120]
[343145447,1732380643147,-383.32728307,0.00054794,120]
[343145450,1732380643157,-500.0,0.00054794,120]
[343145454,1732380643167,-500.0,0.00054794,120]
[343145456,1732380643182,-649.62,0.00054794,120]
[343145457,1732380643191,-558.71698772,0.00054794,120]
[343145458,1732380643201,-590.77,0.00054794,120]
[343145459,1732380643214,-500.0,0.00054794,120]
[343145460,1732380643223,-500.0,0.00054794,120]
[343145461,1732380643232,-500.0,0.00054794,120]
[343145462,1732380643242,-500.0,0.00054794,120]
[343145463,1732380643251,-500.0,0.00054794,120]
[343145464,1732380643261,-500.0,0.00054794,120]
[343145465,1732380643271,-500.0,0.00054794,120]
[343145467,1732380643283,-500.0,0.00054794,120]
[343145469,1732380643293,-516.45,0.00054794,120]
[343145470,1732380643303,-500.0,0.00054794,120]
[343145471,1732380643313,-500.0,0.00054794,21]
[343145472,1732380643322,-500.0,0.00054794,21]
[343145473,1732380643332,-500.0,0.00054794,120]
[343145474,1732380643341,-500.0,0.00054794,120]
[343145475,1732380643350,-162.235863,0.00054794,120]
[343145476,1732380643359,-162.235863,0.00054794,120]
[343145477,1732380643368,-300.0,0.00054794,120]
[343145478,1732380643378,-500.0,0.00054794,120]
[343145479,1732380643387,-500.0,0.00054794,120]
[343145480,1732380643397,-500.0,0.00054794,120]
[343145481,1732380643408,-500.0,0.00054794,120]
[343145482,1732380643424,-500.0,0.00054794,120]
[343145483,1732380643433,-500.0,0.00054794,120]
[343145484,1732380643443,-2516.98,0.00054794,120]
[343145485,1732380643453,-2516.98,0.00054794,120]
[343145486,1732380643463,-500.0,0.00054794,120]
[343145487,1732380643473,-500.0,0.00054794,120]
[343145488,1732380643483,-500.0,0.00054794,120]
[343145489,1732380643493,-500.0,0.00054794,120]
[343145490,1732380643502,-500.0,0.00054794,2]
[343145491,1732380643512,-500.0,0.00054794,120]
[343145492,1732380643521,-500.0,0.00054794,120]
[343145493,1732380643530,-500.0,0.00054794,120]
[343145494,1732380643539,-500.0,0.00054794,120]
[343145495,1732380643548,-500.0,0.00054794,120]
[343145496,1732380643557,-500.0,0.00054794,120]
[343145497,1732380643567,-500.0,0.00054794,120]
[343145498,1732380643577,-500.0,0.00054794,120]
[343145499,1732380643586,-500.0,0.00054794,120]
[343145500,1732380643595,-500.0,0.00054794,120]
[343145501,1732380643605,-500.0,0.00054794,120]
[343145502,1732380643614,-500.0,0.00054794,120]
[343145504,1732380643623,-500.0,0.00054794,120]
[343145505,1732380643633,-500.0,0.00054795,120]
[343145506,1732380643642,-500.0,0.00054795,120]
[343145507,1732380643650,-500.0,0.00054795,120]
[343145508,1732380643660,-500.0,0.00054795,120]
[343145509,1732380643669,-500.0,0.00054795,120]
[343145510,1732380643681,-2038.0,0.000548,10]
[343145511,1732380643691,-50000.0,0.0005483,120]
[343145512,1732380643700,-945.51089521,0.0005487,30]
[343145513,1732380643709,-761.86,0.00054875,2]
[343145514,1732380643719,-16957.78169279,0.000549,120]
[343145516,1732380643728,-300.0,0.000549,20]
[343145517,1732380643737,-204.58869476,0.0005497,27]
[343145518,1732380643746,-1334.72,0.00054999,120]
[343145519,1732380643755,-371.85112628,0.00054999,120]
[343145520,1732380643764,-500.0,0.00054999,120]
[343145521,1732380643773,-700.0,0.00055,20]
[343145522,1732380643783,-99989.695204,0.00055,2]
[343145524,1732380643796,-78865.15401793,0.00055,2]
[343145525,1732380643807,-209.29661421,0.00055036,15]
[343145526,1732380643816,-1698.6535049,0.00055036,15]
[343145527,1732380643826,-1000.0,0.000551,20]
[343145528,1732380643835,-2516.98,0.0005517,120]
[343145529,1732380643845,-500.0,0.0005517,120]
[343145532,1732380643854,-500.0,0.00055171,120]
[343145533,1732380643863,-500.0,0.00055171,120]
[343145534,1732380643873,-500.0,0.00055171,120]
[343145535,1732380643882,-500.0,0.00055171,120]
[343145536,1732380643892,-500.0,0.00055171,120]
[343145537,1732380643901,-500.0,0.00055171,120]
[343145538,1732380643911,-500.0,0.00055171,120]
[343145539,1732380644069,-514.25272876,0.00055171,120]
[343145540,1732380644078,-1450.67,0.00055171,120]
[343145541,1732380644087,-500.0,0.00055171,120]
[343145542,1732380644097,-500.0,0.00055171,120]
[343145543,1732380644106,-500.0,0.00055171,120]
[343145544,1732380644115,-500.0,0.00055171,120]
[343145545,1732380644125,-500.0,0.00055171,120]
[343145546,1732380644134,-500.0,0.00055171,120]
[343145547,1732380644144,-500.0,0.00055171,120]
[343145548,1732380644154,-500.0,0.00055171,120]
[343145549,1732380644164,-500.0,0.00055171,120]